[Event "Early-Titled-Tuesday-Blitz-May-07-2024"]
[Site "Chess.com"]
[Date "2024.05.07"]
[Round "5"]
[White "PonyQueen07"]
[Black "KorolDimitriy75"]
[Result "0-1"]
[WhiteElo "2141"]
[BlackElo "2368"]
[TimeControl "180+1"]
[EndTime "8:59:27 PDT"]
[Termination "KorolDimitriy75 won by checkmate"]

1. c4 {[%clk 0:03:00.9]} 1... c5 {[%clk 0:02:49.4]} 2. Nc3 {[%clk 0:03:00.7]}
2... g6 {[%clk 0:02:49.1]} 3. g3 {[%clk 0:03:00.9]} 3... Bg7 {[%clk 0:02:49.5]}
4. Bg2 {[%clk 0:03:01.5]} 4... Nc6 {[%clk 0:02:50.3]} 5. e4 {[%clk 0:03:00.8]}
5... d6 {[%clk 0:02:49.5]} 6. Nge2 {[%clk 0:03:00.8]} 6... e5 {[%clk 0:02:49.2]}
7. O-O {[%clk 0:03:00]} 7... Nge7 {[%clk 0:02:49.9]} 8. d3 {[%clk 0:03:00.5]}
8... O-O {[%clk 0:02:50]} 9. Be3 {[%clk 0:03:00.5]} 9... f5 {[%clk 0:02:45]} 10.
f4 {[%clk 0:03:00.3]} 10... Be6 {[%clk 0:02:44.4]} 11. Qd2 {[%clk 0:02:56.8]}
11... Qd7 {[%clk 0:02:44.3]} 12. Nd5 {[%clk 0:02:51.7]} 12... Rae8 {[%clk
0:02:38.1]} 13. fxe5 {[%clk 0:02:42.2]} 13... Nxe5 {[%clk 0:02:35.5]} 14. Bg5
{[%clk 0:02:20.3]} 14... Bxd5 {[%clk 0:01:31.8]} 15. cxd5 {[%clk 0:01:51.3]}
15... Ng4 {[%clk 0:00:44.3]} 16. h3 {[%clk 0:01:44.9]} 16... Nf6 {[%clk
0:00:19.7]} 17. Nf4 {[%clk 0:01:30.1]} 17... Rf7 {[%clk 0:00:16.3]} 18. Ne6
{[%clk 0:01:29.2]} 18... Bh8 {[%clk 0:00:15.8]} 19. Bh6 {[%clk 0:01:19.9]} 19...
b6 {[%clk 0:00:13.1]} 20. Ng5 {[%clk 0:01:17.4]} 20... Qc8 {[%clk 0:00:09.9]}
21. Nxf7 {[%clk 0:01:16.8]} 21... Kxf7 {[%clk 0:00:10.8]} 22. Rae1 {[%clk
0:01:10.9]} 22... Qd7 {[%clk 0:00:10.2]} 23. d4 {[%clk 0:01:00]} 23... cxd4
{[%clk 0:00:09.3]} 24. Bg5 {[%clk 0:00:22.3]} 24... Bg7 {[%clk 0:00:05.9]} 25.
Bxf6 {[%clk 0:00:20.5]} 25... Bxf6 {[%clk 0:00:06.7]} 26. Kh2 {[%clk 0:00:18.2]}
26... Kg7 {[%clk 0:00:06]} 27. exf5 {[%clk 0:00:10.4]} 27... Nxf5 {[%clk
0:00:06.6]} 28. Rxe8 {[%clk 0:00:06.2]} 28... Qxe8 {[%clk 0:00:07.5]} 29. Re1
{[%clk 0:00:03.2]} 29... Ne3 {[%clk 0:00:07.3]} 30. b4 {[%clk 0:00:02.4]} 30...
Qe5 {[%clk 0:00:07.1]} 31. Qf2 {[%clk 0:00:02.2]} 31... h5 {[%clk 0:00:06.7]}
32. Re2 {[%clk 0:00:01.9]} 32... h4 {[%clk 0:00:06.5]} 33. Qf3 {[%clk 0:00:02]}
33... Bg5 {[%clk 0:00:05.3]} 34. Kg1 {[%clk 0:00:01.3]} 34... hxg3 {[%clk
0:00:05.1]} 35. Re1 {[%clk 0:00:01.5]} 35... Bf4 {[%clk 0:00:05.2]} 36. Rf1
{[%clk 0:00:01.8]} 36... g5 {[%clk 0:00:05.1]} 37. Re1 {[%clk 0:00:02]} 37... d3
{[%clk 0:00:05.1]} 38. Rd1 {[%clk 0:00:01.7]} 38... Nxd1 {[%clk 0:00:04.3]} 39.
Qxd1 {[%clk 0:00:02.6]} 39... Qe3+ {[%clk 0:00:04.1]} 40. Kh1 {[%clk 0:00:02.6]}
40... d2 {[%clk 0:00:04.7]} 41. Bf3 {[%clk 0:00:03.1]} 41... Qe1+ {[%clk
0:00:05.6]} 42. Kg2 {[%clk 0:00:03.1]} 42... Qf2+ {[%clk 0:00:05.8]} 43. Kh1
{[%clk 0:00:03.6]} 43... Qh2# {[%clk 0:00:06.6]} 0-1

[Event "Early-Titled-Tuesday-Blitz-May-07-2024"]
[Site "Chess.com"]
[Date "2024.05.07"]
[Round "5"]
[White "MVM2008"]
[Black "Doublekk14"]
[Result "1-0"]
[WhiteElo "2560"]
[BlackElo "2354"]
[TimeControl "180+1"]
[EndTime "8:59:28 PDT"]
[Termination "MVM2008 won on time"]

1. e4 {[%clk 0:03:00.9]} 1... c5 {[%clk 0:03:00]} 2. Nf3 {[%clk 0:03:00.5]} 2...
e6 {[%clk 0:03:00.5]} 3. d4 {[%clk 0:02:59.3]} 3... cxd4 {[%clk 0:03:01]} 4.
Nxd4 {[%clk 0:03:00.2]} 4... Nf6 {[%clk 0:03:01.6]} 5. Nc3 {[%clk 0:03:00.7]}
5... Nc6 {[%clk 0:03:02]} 6. a3 {[%clk 0:03:00.3]} 6... d6 {[%clk 0:03:00.7]} 7.
Be3 {[%clk 0:02:58.6]} 7... a6 {[%clk 0:03:01]} 8. f4 {[%clk 0:02:58.3]} 8...
Qc7 {[%clk 0:03:00.1]} 9. Be2 {[%clk 0:02:56]} 9... Be7 {[%clk 0:02:57.7]} 10.
O-O {[%clk 0:02:54]} 10... Bd7 {[%clk 0:02:57.9]} 11. Bf3 {[%clk 0:02:39.6]}
11... Nxd4 {[%clk 0:02:55.2]} 12. Bxd4 {[%clk 0:02:34.1]} 12... e5 {[%clk
0:02:55.3]} 13. Be3 {[%clk 0:02:30.7]} 13... Bc6 {[%clk 0:02:54.3]} 14. Qe1
{[%clk 0:02:14.9]} 14... exf4 {[%clk 0:01:55.1]} 15. Bxf4 {[%clk 0:02:12.2]}
15... Nd7 {[%clk 0:01:55.7]} 16. Nd5 {[%clk 0:01:40.4]} 16... Bxd5 {[%clk
0:01:52.5]} 17. exd5 {[%clk 0:01:41.3]} 17... Ne5 {[%clk 0:01:52.7]} 18. Bxe5
{[%clk 0:01:37.7]} 18... dxe5 {[%clk 0:01:52.5]} 19. Be4 {[%clk 0:01:26.6]}
19... Bf6 {[%clk 0:01:49.4]} 20. Qb4 {[%clk 0:01:21.9]} 20... Be7 {[%clk
0:01:38.2]} 21. Qa4+ {[%clk 0:00:47.9]} 21... b5 {[%clk 0:01:37.7]} 22. Qb3
{[%clk 0:00:48.2]} 22... Bd6 {[%clk 0:01:33.3]} 23. a4 {[%clk 0:00:44.2]} 23...
O-O {[%clk 0:01:31.2]} 24. axb5 {[%clk 0:00:43.1]} 24... axb5 {[%clk 0:01:31.4]}
25. Qxb5 {[%clk 0:00:38.6]} 25... Rab8 {[%clk 0:01:23.8]} 26. Qc6 {[%clk
0:00:28.3]} 26... Rxb2 {[%clk 0:01:14.2]} 27. Ra6 {[%clk 0:00:19.9]} 27... Rd8
{[%clk 0:00:36.9]} 28. c4 {[%clk 0:00:18.4]} 28... Bc5+ {[%clk 0:00:30.4]} 29.
Kh1 {[%clk 0:00:16.9]} 29... Qd6 {[%clk 0:00:16.5]} 30. Rc1 {[%clk 0:00:07]}
30... Rb6 {[%clk 0:00:14.5]} 31. Rxb6 {[%clk 0:00:06]} 31... Bxb6 {[%clk
0:00:13.8]} 32. Qxd6 {[%clk 0:00:06.3]} 32... Rxd6 {[%clk 0:00:10.7]} 33. c5
{[%clk 0:00:06.8]} 33... Bxc5 {[%clk 0:00:08.5]} 34. Rxc5 {[%clk 0:00:07.7]}
34... g6 {[%clk 0:00:08.4]} 35. Rc6 {[%clk 0:00:06.3]} 35... Rd7 {[%clk
0:00:04.1]} 36. g4 {[%clk 0:00:05.1]} 36... Kf8 {[%clk 0:00:03.1]} 37. g5 {[%clk
0:00:05.4]} 37... Ke7 {[%clk 0:00:02.6]} 38. Kg2 {[%clk 0:00:06]} 1-0

[Event "Early-Titled-Tuesday-Blitz-May-07-2024"]
[Site "Chess.com"]
[Date "2024.05.07"]
[Round "5"]
[White "Gumugama"]
[Black "MaxLeto"]
[Result "0-1"]
[WhiteElo "2255"]
[BlackElo "2428"]
[TimeControl "180+1"]
[EndTime "8:59:29 PDT"]
[Termination "MaxLeto won by resignation"]

1. e4 {[%clk 0:03:00.9]} 1... c5 {[%clk 0:02:59]} 2. Nf3 {[%clk 0:02:59.8]} 2...
d6 {[%clk 0:02:59.3]} 3. d4 {[%clk 0:02:59.2]} 3... cxd4 {[%clk 0:03:00.2]} 4.
Nxd4 {[%clk 0:02:59.4]} 4... Nf6 {[%clk 0:03:01.1]} 5. Nc3 {[%clk 0:02:51.5]}
5... a6 {[%clk 0:03:00.9]} 6. f3 {[%clk 0:02:50.9]} 6... e6 {[%clk 0:03:00]} 7.
Be3 {[%clk 0:02:49.1]} 7... b5 {[%clk 0:03:00.3]} 8. Qd2 {[%clk 0:02:48.7]} 8...
Nbd7 {[%clk 0:03:00.7]} 9. O-O-O {[%clk 0:02:42]} 9... b4 {[%clk 0:02:50.8]} 10.
Nce2 {[%clk 0:02:08.8]} 10... d5 {[%clk 0:02:50.7]} 11. exd5 {[%clk 0:02:07.9]}
11... Nxd5 {[%clk 0:02:50.5]} 12. Nf4 {[%clk 0:01:33.8]} 12... Bb7 {[%clk
0:02:48.1]} 13. Nxd5 {[%clk 0:01:32.9]} 13... Bxd5 {[%clk 0:02:49]} 14. Kb1
{[%clk 0:01:25.8]} 14... Nb6 {[%clk 0:02:19.8]} 15. f4 {[%clk 0:00:58.8]} 15...
Be7 {[%clk 0:01:56.7]} 16. f5 {[%clk 0:00:58.2]} 16... O-O {[%clk 0:01:55.4]}
17. fxe6 {[%clk 0:00:54.7]} 17... fxe6 {[%clk 0:01:56.3]} 18. Bd3 {[%clk
0:00:54.4]} 18... Qc7 {[%clk 0:01:42.2]} 19. Rhf1 {[%clk 0:00:50.8]} 19... Nc4
{[%clk 0:01:34.2]} 20. Qe2 {[%clk 0:00:43.6]} 20... Nxe3 {[%clk 0:01:25.8]} 21.
Qxe3 {[%clk 0:00:44.5]} 21... Bf6 {[%clk 0:01:04.4]} 22. g4 {[%clk 0:00:25.1]}
22... Qb6 {[%clk 0:00:47.4]} 23. Rxf6 {[%clk 0:00:22.6]} 23... Rxf6 {[%clk
0:00:37.4]} 24. g5 {[%clk 0:00:20.3]} 24... Rf3 {[%clk 0:00:36.7]} 25. Qe2
{[%clk 0:00:18.4]} 25... Rf4 {[%clk 0:00:31.2]} 26. Qe3 {[%clk 0:00:13.1]} 26...
Raf8 {[%clk 0:00:22.7]} 27. Qh3 {[%clk 0:00:12.8]} 27... g6 {[%clk 0:00:20.1]}
28. Ne2 {[%clk 0:00:09.7]} 28... Rf3 {[%clk 0:00:17.2]} 29. Qg4 {[%clk
0:00:08.5]} 29... Rf1 {[%clk 0:00:16.4]} 30. Ng3 {[%clk 0:00:06.8]} 30... Rxd1+
{[%clk 0:00:13.1]} 31. Qxd1 {[%clk 0:00:07.7]} 31... a5 {[%clk 0:00:07.4]} 32.
h4 {[%clk 0:00:07.5]} 32... Qe3 {[%clk 0:00:05.8]} 33. Ne2 {[%clk 0:00:05]}
33... Bg2 {[%clk 0:00:05]} 34. Nc1 {[%clk 0:00:02.8]} 34... Rf1 {[%clk
0:00:05.3]} 35. Bxf1 {[%clk 0:00:02.4]} 35... Bf3 {[%clk 0:00:05.7]} 36. Qd8+
{[%clk 0:00:01.1]} 36... Kg7 {[%clk 0:00:05.7]} 37. Qd3 {[%clk 0:00:01.7]} 37...
Qf4 {[%clk 0:00:04.7]} 38. Qd1 {[%clk 0:00:01.5]} 38... Bd5 {[%clk 0:00:04.8]}
39. Qd4+ {[%clk 0:00:01.8]} 39... Qxd4 {[%clk 0:00:04.1]} 40. Ne2 {[%clk
0:00:02.1]} 40... Qf2 {[%clk 0:00:04.3]} 41. Nc1 {[%clk 0:00:03]} 41... Qxf1
{[%clk 0:00:04.8]} 0-1

[Event "Early-Titled-Tuesday-Blitz-May-07-2024"]
[Site "Chess.com"]
[Date "2024.05.07"]
[Round "5"]
[White "s_stefi"]
[Black "JaackCamel"]
[Result "1-0"]
[WhiteElo "1936"]
[BlackElo "2240"]
[TimeControl "180+1"]
[EndTime "8:59:29 PDT"]
[Termination "s_stefi won by checkmate"]

1. e4 {[%clk 0:02:56.5]} 1... e6 {[%clk 0:02:59.4]} 2. d3 {[%clk 0:02:55.3]}
2... d5 {[%clk 0:02:59.1]} 3. Nd2 {[%clk 0:02:55.3]} 3... c5 {[%clk 0:02:58.6]}
4. Ngf3 {[%clk 0:02:54.6]} 4... Nc6 {[%clk 0:02:58.4]} 5. g3 {[%clk 0:02:54]}
5... Nf6 {[%clk 0:02:58.1]} 6. Bg2 {[%clk 0:02:54]} 6... g6 {[%clk 0:02:58]} 7.
O-O {[%clk 0:02:53.3]} 7... Bg7 {[%clk 0:02:57.9]} 8. Re1 {[%clk 0:02:40.7]}
8... O-O {[%clk 0:02:57.7]} 9. Qe2 {[%clk 0:02:20.7]} 9... a5 {[%clk 0:02:56.2]}
10. Nf1 {[%clk 0:02:12]} 10... a4 {[%clk 0:02:51.2]} 11. e5 {[%clk 0:02:05.7]}
11... Nd7 {[%clk 0:02:46.7]} 12. Bf4 {[%clk 0:02:03.1]} 12... a3 {[%clk
0:02:38.4]} 13. c3 {[%clk 0:01:58.7]} 13... axb2 {[%clk 0:02:37.4]} 14. Qxb2
{[%clk 0:01:58]} 14... Qa5 {[%clk 0:02:31.5]} 15. h4 {[%clk 0:01:51]} 15... Qa3
{[%clk 0:02:27.8]} 16. Qd2 {[%clk 0:01:45.3]} 16... b5 {[%clk 0:02:20.1]} 17.
N1h2 {[%clk 0:01:36.2]} 17... b4 {[%clk 0:02:19.9]} 18. c4 {[%clk 0:01:18.5]}
18... Nb6 {[%clk 0:02:05.4]} 19. Bh6 {[%clk 0:00:40.7]} 19... Qc3 {[%clk
0:01:46.9]} 20. Qg5 {[%clk 0:00:24.2]} 20... f6 {[%clk 0:01:25.6]} 21. exf6
{[%clk 0:00:18.5]} 21... Bxf6 {[%clk 0:01:24.6]} 22. Qe3 {[%clk 0:00:15.1]}
22... Re8 {[%clk 0:01:14.5]} 23. Qxc5 {[%clk 0:00:14.6]} 23... Nd4 {[%clk
0:01:02.2]} 24. Qxb6 {[%clk 0:00:10.9]} 24... Nc2 {[%clk 0:00:59]} 25. Rac1
{[%clk 0:00:10]} 25... Qa3 {[%clk 0:00:52.8]} 26. Rxc2 {[%clk 0:00:09.6]} 26...
b3 {[%clk 0:00:51]} 27. axb3 {[%clk 0:00:09.4]} 27... Qe7 {[%clk 0:00:49.2]} 28.
Rce2 {[%clk 0:00:09.3]} 28... e5 {[%clk 0:00:48.3]} 29. Bg5 {[%clk 0:00:08.2]}
29... Ra6 {[%clk 0:00:46.3]} 30. Qe3 {[%clk 0:00:07.7]} 30... Re6 {[%clk
0:00:45.7]} 31. Bxf6 {[%clk 0:00:07.3]} 31... Qxf6 {[%clk 0:00:45.8]} 32. cxd5
{[%clk 0:00:07.6]} 32... R6e7 {[%clk 0:00:44.9]} 33. Qg5 {[%clk 0:00:07.3]}
33... Qf7 {[%clk 0:00:44.7]} 34. Ng4 {[%clk 0:00:07.1]} 34... Kg7 {[%clk
0:00:43]} 35. Nfxe5 {[%clk 0:00:06.4]} 35... Qf5 {[%clk 0:00:41.3]} 36. Qxf5
{[%clk 0:00:06.2]} 36... gxf5 {[%clk 0:00:41.3]} 37. Nh2 {[%clk 0:00:04.4]}
37... Bb7 {[%clk 0:00:39.6]} 38. Nhf3 {[%clk 0:00:04.7]} 38... Ba6 {[%clk
0:00:39.6]} 39. Re3 {[%clk 0:00:04.4]} 39... f4 {[%clk 0:00:39.4]} 40. Re4
{[%clk 0:00:04.3]} 40... h5 {[%clk 0:00:38.7]} 41. Rxf4 {[%clk 0:00:04.6]} 41...
Rb8 {[%clk 0:00:37.6]} 42. Rf5 {[%clk 0:00:03.2]} 42... Bb5 {[%clk 0:00:35.8]}
43. Rg5+ {[%clk 0:00:03.7]} 43... Kf6 {[%clk 0:00:33.5]} 44. Rg6+ {[%clk
0:00:03.4]} 44... Kf5 {[%clk 0:00:33.7]} 45. Rg5+ {[%clk 0:00:03.4]} 45... Kf6
{[%clk 0:00:33.7]} 46. Rxh5 {[%clk 0:00:03.8]} 46... Kg7 {[%clk 0:00:33.1]} 47.
Rg5+ {[%clk 0:00:04]} 47... Kh7 {[%clk 0:00:32.4]} 48. Ng4 {[%clk 0:00:03.9]}
48... Rxe1+ {[%clk 0:00:31.5]} 49. Nxe1 {[%clk 0:00:04.8]} 49... Bxd3 {[%clk
0:00:31.5]} 50. Nxd3 {[%clk 0:00:04.7]} 50... Rxb3 {[%clk 0:00:31.1]} 51. Kh2
{[%clk 0:00:05.2]} 51... Rxd3 {[%clk 0:00:31.2]} 52. Nf6+ {[%clk 0:00:05.2]}
52... Kh6 {[%clk 0:00:30.2]} 53. Be4 {[%clk 0:00:04.8]} 53... Rd2 {[%clk
0:00:30]} 54. Rg6# {[%clk 0:00:03.6]} 1-0

[Event "Early-Titled-Tuesday-Blitz-May-07-2024"]
[Site "Chess.com"]
[Date "2024.05.07"]
[Round "5"]
[White "banane_verte"]
[Black "AttilaTurzo"]
[Result "0-1"]
[WhiteElo "2581"]
[BlackElo "2474"]
[TimeControl "180+1"]
[EndTime "8:59:31 PDT"]
[Termination "AttilaTurzo won by checkmate"]

1. d4 {[%clk 0:03:00.9]} 1... d5 {[%clk 0:02:55.3]} 2. c4 {[%clk 0:03:00.5]}
2... c6 {[%clk 0:02:56.2]} 3. Nf3 {[%clk 0:02:55.7]} 3... Nf6 {[%clk 0:02:56.4]}
4. Nc3 {[%clk 0:02:48.5]} 4... e6 {[%clk 0:02:56.2]} 5. e3 {[%clk 0:02:47.5]}
5... Nbd7 {[%clk 0:02:56.1]} 6. Bd3 {[%clk 0:02:44.8]} 6... dxc4 {[%clk
0:02:53.5]} 7. Bxc4 {[%clk 0:02:45.2]} 7... b5 {[%clk 0:02:52.4]} 8. Bd3 {[%clk
0:02:45.4]} 8... Bd6 {[%clk 0:02:52.9]} 9. e4 {[%clk 0:02:43.8]} 9... e5 {[%clk
0:02:52.7]} 10. dxe5 {[%clk 0:02:41.2]} 10... Nxe5 {[%clk 0:02:52.9]} 11. Nxe5
{[%clk 0:02:40.1]} 11... Bxe5 {[%clk 0:02:53.2]} 12. O-O {[%clk 0:02:32.5]}
12... O-O {[%clk 0:02:48.9]} 13. f4 {[%clk 0:02:32.6]} 13... Bd4+ {[%clk
0:02:45.3]} 14. Kh1 {[%clk 0:02:30.7]} 14... Ng4 {[%clk 0:02:45.7]} 15. Qf3
{[%clk 0:02:22.5]} 15... Qh4 {[%clk 0:02:38.5]} 16. Qg3 {[%clk 0:01:58.3]} 16...
Qxg3 {[%clk 0:02:23.7]} 17. hxg3 {[%clk 0:01:58.1]} 17... Nf2+ {[%clk
0:02:24.3]} 18. Rxf2 {[%clk 0:01:36.9]} 18... Bxf2 {[%clk 0:02:25.2]} 19. Kh2
{[%clk 0:01:31.9]} 19... Rd8 {[%clk 0:02:24.1]} 20. Bc2 {[%clk 0:01:29.7]} 20...
Bg4 {[%clk 0:02:10.6]} 21. e5 {[%clk 0:01:27.6]} 21... f5 {[%clk 0:02:03]} 22.
exf6 {[%clk 0:01:22.5]} 22... gxf6 {[%clk 0:01:59]} 23. Ne4 {[%clk 0:01:17.3]}
23... Bd4 {[%clk 0:01:57.9]} 24. Be3 {[%clk 0:01:15.7]} 24... Kg7 {[%clk
0:01:51.1]} 25. Bxd4 {[%clk 0:00:31.8]} 25... Rxd4 {[%clk 0:01:52]} 26. Nf2
{[%clk 0:00:31.8]} 26... Be6 {[%clk 0:01:46.2]} 27. Bb3 {[%clk 0:00:30.4]} 27...
Bxb3 {[%clk 0:01:42.3]} 28. axb3 {[%clk 0:00:31.3]} 28... Rd2 {[%clk 0:01:36.5]}
29. Ne4 {[%clk 0:00:28.8]} 29... Rxb2 {[%clk 0:01:36.5]} 30. Nc5 {[%clk
0:00:28.9]} 30... a5 {[%clk 0:01:32.4]} 31. Ne6+ {[%clk 0:00:24.7]} 31... Kf7
{[%clk 0:01:31.7]} 32. Nd4 {[%clk 0:00:25.6]} 32... a4 {[%clk 0:01:24.8]} 33.
bxa4 {[%clk 0:00:24.3]} 33... Rxa4 {[%clk 0:01:23.4]} 34. Rd1 {[%clk 0:00:24.5]}
34... c5 {[%clk 0:01:14.5]} 35. Nf5 {[%clk 0:00:24.8]} 35... c4 {[%clk 0:01:12]}
36. g4 {[%clk 0:00:23.6]} 36... Ra7 {[%clk 0:01:07.2]} 37. Rd6 {[%clk
0:00:17.8]} 37... c3 {[%clk 0:01:03.9]} 38. g5 {[%clk 0:00:17.4]} 38... fxg5
{[%clk 0:01:02]} 39. fxg5 {[%clk 0:00:18.3]} 39... c2 {[%clk 0:00:51.6]} 40.
Rf6+ {[%clk 0:00:13.1]} 40... Ke8 {[%clk 0:00:51.8]} 41. Rc6 {[%clk 0:00:11.7]}
41... Kd8 {[%clk 0:00:46.3]} 42. Nd4 {[%clk 0:00:10]} 42... Rc7 {[%clk
0:00:41.3]} 43. Ne6+ {[%clk 0:00:09.6]} 43... Kd7 {[%clk 0:00:41.8]} 44. Rxc7+
{[%clk 0:00:04.6]} 44... Kxe6 {[%clk 0:00:42.1]} 45. Kh3 {[%clk 0:00:04.1]}
45... b4 {[%clk 0:00:42.3]} 46. Kh4 {[%clk 0:00:04.3]} 46... b3 {[%clk
0:00:42.7]} 47. Kh5 {[%clk 0:00:02.8]} 47... Rb1 {[%clk 0:00:42.7]} 48. Kh6
{[%clk 0:00:02.4]} 48... Rh1+ {[%clk 0:00:40.8]} 49. Kg7 {[%clk 0:00:03]} 49...
c1=Q {[%clk 0:00:38]} 50. Rxc1 {[%clk 0:00:03.9]} 50... Rxc1 {[%clk 0:00:37.2]}
51. Kxh7 {[%clk 0:00:04.5]} 51... Rg1 {[%clk 0:00:37.2]} 52. g4 {[%clk
0:00:02.7]} 52... Rxg4 {[%clk 0:00:37]} 53. g6 {[%clk 0:00:03.6]} 53... b2
{[%clk 0:00:36.8]} 54. g7 {[%clk 0:00:04.5]} 54... b1=Q+ {[%clk 0:00:36.8]} 55.
Kh8 {[%clk 0:00:04.8]} 55... Rh4+ {[%clk 0:00:31]} 56. Kg8 {[%clk 0:00:04.9]}
56... Qb8# {[%clk 0:00:30.9]} 0-1

[Event "Early-Titled-Tuesday-Blitz-May-07-2024"]
[Site "Chess.com"]
[Date "2024.05.07"]
[Round "5"]
[White "Seochesspie"]
[Black "Ivan11Martic"]
[Result "1-0"]
[WhiteElo "2855"]
[BlackElo "2624"]
[TimeControl "180+1"]
[EndTime "8:59:32 PDT"]
[Termination "Seochesspie won on time"]

1. c4 {[%clk 0:03:00.9]} 1... g6 {[%clk 0:02:59]} 2. d4 {[%clk 0:03:00.4]} 2...
Bg7 {[%clk 0:02:59.7]} 3. Nc3 {[%clk 0:03:00.6]} 3... d6 {[%clk 0:03:00.2]} 4.
e4 {[%clk 0:03:00.5]} 4... Nf6 {[%clk 0:03:00.7]} 5. h3 {[%clk 0:02:59.6]} 5...
O-O {[%clk 0:03:00.6]} 6. Be3 {[%clk 0:02:59.9]} 6... e5 {[%clk 0:03:01]} 7. d5
{[%clk 0:02:59.9]} 7... Na6 {[%clk 0:02:59.8]} 8. g4 {[%clk 0:02:59.3]} 8... Nd7
{[%clk 0:02:54.7]} 9. Nge2 {[%clk 0:02:54.9]} 9... Ndc5 {[%clk 0:02:38.7]} 10.
Ng3 {[%clk 0:02:52.4]} 10... Bf6 {[%clk 0:02:09.5]} 11. Qd2 {[%clk 0:02:52]}
11... Nb4 {[%clk 0:02:06.1]} 12. g5 {[%clk 0:02:32.6]} 12... Be7 {[%clk
0:02:01.7]} 13. h4 {[%clk 0:02:32.8]} 13... f5 {[%clk 0:01:54.3]} 14. gxf6
{[%clk 0:02:32.3]} 14... Bxf6 {[%clk 0:01:49.1]} 15. h5 {[%clk 0:02:30.3]} 15...
Bg4 {[%clk 0:01:40.8]} 16. hxg6 {[%clk 0:02:27.5]} 16... hxg6 {[%clk 0:01:41.7]}
17. Rg1 {[%clk 0:02:09.3]} 17... Qd7 {[%clk 0:01:31.9]} 18. Bxc5 {[%clk
0:01:53.7]} 18... dxc5 {[%clk 0:01:30.1]} 19. a3 {[%clk 0:01:53.7]} 19... Na6
{[%clk 0:01:25.7]} 20. Be2 {[%clk 0:01:49.1]} 20... Kf7 {[%clk 0:01:16.8]} 21.
O-O-O {[%clk 0:01:46]} 21... Rh8 {[%clk 0:01:12]} 22. Kb1 {[%clk 0:01:16.1]}
22... Rh2 {[%clk 0:01:03.6]} 23. Qe3 {[%clk 0:01:08.3]} 23... Rah8 {[%clk
0:00:56.9]} 24. f4 {[%clk 0:01:01.9]} 24... Bxe2 {[%clk 0:00:52.1]} 25. Ngxe2
{[%clk 0:00:59.7]} 25... R8h3 {[%clk 0:00:50.1]} 26. Qc1 {[%clk 0:00:54.3]}
26... exf4 {[%clk 0:00:46.9]} 27. Qxf4 {[%clk 0:00:47.8]} 27... Qd6 {[%clk
0:00:24.5]} 28. Rdf1 {[%clk 0:00:42.8]} 28... Qxf4 {[%clk 0:00:16.6]} 29. Nxf4
{[%clk 0:00:43.1]} 29... Rh6 {[%clk 0:00:14.1]} 30. Nd3 {[%clk 0:00:33.4]} 30...
Kg7 {[%clk 0:00:09.9]} 31. e5 {[%clk 0:00:32.9]} 31... Be7 {[%clk 0:00:10.2]}
32. e6 {[%clk 0:00:31]} 32... Bf6 {[%clk 0:00:09.5]} 33. Ne4 {[%clk 0:00:30.8]}
33... Bd4 {[%clk 0:00:08.6]} 34. Rf7+ {[%clk 0:00:30.2]} 34... Kg8 {[%clk
0:00:08]} 35. Rgf1 {[%clk 0:00:29.8]} 35... R6h3 {[%clk 0:00:06.7]} 36. Rf8+
{[%clk 0:00:25.7]} 36... Kg7 {[%clk 0:00:06.4]} 37. R8f3 {[%clk 0:00:19.1]}
37... Rxf3 {[%clk 0:00:05]} 38. Rxf3 {[%clk 0:00:20]} 38... Rh1+ {[%clk
0:00:05.6]} 39. Ka2 {[%clk 0:00:19.8]} 39... b5 {[%clk 0:00:04.3]} 40. e7 {[%clk
0:00:16.8]} 40... Rh8 {[%clk 0:00:03.4]} 41. Nf4 {[%clk 0:00:17.2]} 41... Re8
{[%clk 0:00:02.1]} 42. Ne6+ {[%clk 0:00:17]} 42... Kh7 {[%clk 0:00:02.5]} 43.
Rf7+ {[%clk 0:00:16.9]} 43... Kh6 {[%clk 0:00:02.7]} 44. cxb5 {[%clk 0:00:16.8]}
44... Nb8 {[%clk 0:00:02]} 45. d6 {[%clk 0:00:17]} 45... cxd6 {[%clk 0:00:01.8]}
46. Nxd6 {[%clk 0:00:17.4]} 1-0

[Event "Early-Titled-Tuesday-Blitz-May-07-2024"]
[Site "Chess.com"]
[Date "2024.05.07"]
[Round "5"]
[White "Arteler"]
[Black "profedechess93"]
[Result "0-1"]
[WhiteElo "2334"]
[BlackElo "2633"]
[TimeControl "180+1"]
[EndTime "8:59:32 PDT"]
[Termination "profedechess93 won by resignation"]

1. e4 {[%clk 0:03:00.9]} 1... e6 {[%clk 0:03:00]} 2. d4 {[%clk 0:02:58.6]} 2...
d5 {[%clk 0:03:00.6]} 3. e5 {[%clk 0:02:58.5]} 3... c5 {[%clk 0:03:00.5]} 4. c3
{[%clk 0:02:58.9]} 4... Nc6 {[%clk 0:03:01.2]} 5. Bd3 {[%clk 0:02:59]} 5... cxd4
{[%clk 0:02:59.1]} 6. cxd4 {[%clk 0:02:59.9]} 6... Nxd4 {[%clk 0:02:57.7]} 7.
Nf3 {[%clk 0:02:54.9]} 7... Nc6 {[%clk 0:02:50.6]} 8. Nc3 {[%clk 0:02:51.2]}
8... f6 {[%clk 0:02:34.3]} 9. Nh4 {[%clk 0:02:11.2]} 9... Nxe5 {[%clk
0:02:17.9]} 10. Qh5+ {[%clk 0:02:10.2]} 10... Nf7 {[%clk 0:02:16.5]} 11. Bxh7
{[%clk 0:01:56]} 11... Ne7 {[%clk 0:02:02.1]} 12. Ng6 {[%clk 0:01:27.1]} 12...
Nxg6 {[%clk 0:01:48.8]} 13. Qxg6 {[%clk 0:01:28]} 13... Qc7 {[%clk 0:01:33.8]}
14. Be3 {[%clk 0:01:15.8]} 14... Bd7 {[%clk 0:01:31.1]} 15. Rc1 {[%clk
0:01:10.4]} 15... Qe5 {[%clk 0:01:05.8]} 16. Ne2 {[%clk 0:00:35.7]} 16... Bc6
{[%clk 0:00:23]} 17. O-O {[%clk 0:00:30]} 17... Bd6 {[%clk 0:00:18.5]} 18. Bf4
{[%clk 0:00:25.5]} 18... Qf5 {[%clk 0:00:14.2]} 19. Qxf5 {[%clk 0:00:23.7]}
19... exf5 {[%clk 0:00:15.1]} 20. Bxf5 {[%clk 0:00:24]} 20... Be5 {[%clk
0:00:13.7]} 21. Rc2 {[%clk 0:00:16.8]} 21... Ke7 {[%clk 0:00:13.9]} 22. Re1
{[%clk 0:00:16.6]} 22... g5 {[%clk 0:00:14.2]} 23. Bg3 {[%clk 0:00:16.6]} 23...
Kd6 {[%clk 0:00:14.2]} 24. Nc3 {[%clk 0:00:15.2]} 24... Rhe8 {[%clk 0:00:14.1]}
25. Rd2 {[%clk 0:00:11.3]} 25... Nh6 {[%clk 0:00:11.6]} 26. Bxe5+ {[%clk
0:00:06.4]} 26... Rxe5 {[%clk 0:00:09.4]} 27. Rxe5 {[%clk 0:00:05.7]} 27... fxe5
{[%clk 0:00:09.7]} 28. Bc2 {[%clk 0:00:06.5]} 28... d4 {[%clk 0:00:09.5]} 29.
Ne4+ {[%clk 0:00:06.3]} 29... Bxe4 {[%clk 0:00:09.6]} 30. Bxe4 {[%clk
0:00:07.2]} 30... Rc8 {[%clk 0:00:10]} 31. f3 {[%clk 0:00:06.4]} 31... b6 {[%clk
0:00:09.5]} 32. Kf2 {[%clk 0:00:07.3]} 32... Ng8 {[%clk 0:00:09.6]} 33. g3
{[%clk 0:00:07.2]} 33... Nf6 {[%clk 0:00:10.1]} 34. Ke2 {[%clk 0:00:07.3]} 34...
Rh8 {[%clk 0:00:09.6]} 35. Kf1 {[%clk 0:00:06.2]} 35... g4 {[%clk 0:00:09.7]}
36. Bb7 {[%clk 0:00:05.2]} 36... gxf3 {[%clk 0:00:09.2]} 37. Bxf3 {[%clk
0:00:06.1]} 37... e4 {[%clk 0:00:09.7]} 38. Bh1 {[%clk 0:00:04.3]} 38... Ke5
{[%clk 0:00:10.2]} 39. Ke2 {[%clk 0:00:03.9]} 39... Rxh2+ {[%clk 0:00:09.7]} 40.
Ke1 {[%clk 0:00:01.9]} 40... Rxh1+ {[%clk 0:00:09.8]} 41. Ke2 {[%clk 0:00:02.6]}
41... Rh2+ {[%clk 0:00:10.3]} 42. Kd1 {[%clk 0:00:03.5]} 42... Rxd2+ {[%clk
0:00:10.9]} 43. Kxd2 {[%clk 0:00:04.4]} 43... Ng4 {[%clk 0:00:10.5]} 0-1